Workbook

Sheet データ（HP用）
B2: 発生市町村別の犯罪率（令和6年8月末）
B4: 番号 | C4: * | D4: 発生市町村名 | E4: 刑 法 犯 認 知
E5: 人口 | F5: 令和6年 8月末 | G5: 犯罪率 | H5: 令和5年 8月末 | I5: 増減
D6: 県下総数 | E6: =SUM(E7:E51) -> 1705855 | F6: =SUM(F7:F52) -> 4320 | G6: =F6/E6*1000 -> 2.5324544 | H6: =SUM(H7:H52) -> 3994 | I6: =F6-H6 -> 326 | J6: =SUM(E7:E51) -> 1705855
B7: 1 | C7: 1 | D7: 熊本市 | E7: 737944 | F7: =SUM(F54:F58) -> 2390 | G7: =F7/E7*1000 -> 3.238728142 | H7: 2066 | I7: =F7-H7 -> 324
B8: 2 | C8: 2 | D8: 八代市 | E8: 119151 | F8: 307 | G8: 2.576562513 | H8: 303 | I8: 4
B9: 3 | C9: 3 | D9: 人吉市 | E9: 29609 | F9: 69 | G9: 2.330372522 | H9: 57 | I9: 12
B10: 4 | C10: 4 | D10: 荒尾市 | E10: 48675 | F10: 121 | G10: 2.485875706 | H10: 118 | I10: 3
B11: 5 | C11: 5 | D11: 水俣市 | E11: 21833 | F11: 40 | G11: 1.83208904 | H11: 37 | I11: 3
B12: 6 | C12: 6 | D12: 玉名市 | E12: 62289 | F12: 75 | G12: 1.204064923 | H12: 111 | I12: -36
B13: 7 | C13: 7 | D13: 山鹿市 | E13: 46692 | F13: 80 | G13: 1.713355607 | H13: 82 | I13: -2
B14: 8 | C14: 8 | D14: 菊池市 | E14: 45179 | F14: 94 | G14: 2.080612674 | H14: 97 | I14: -3
B15: 9 | C15: 9 | D15: 宇土市 | E15: 35574 | F15: 70 | G15: 1.96772924 | H15: 88 | I15: -18
B16: 10 | C16: 10 | D16: 上天草市 | E16: 22566 | F16: 32 | G16: 1.418062572 | H16: 30 | I16: 2
B17: 11 | C17: 11 | D17: 宇城市 | E17: 55537 | F17: 111 | G17: 1.998667555 | H17: 101 | I17: 10
B18: 12 | C18: 12 | D18: 阿蘇市 | E18: 23865 | F18: 55 | G18: 2.304630212 | H18: 53 | I18: 2
B19: 13 | C19: 13 | D19: 天草市 | E19: 70731 | F19: 68 | G19: 0.9613889242 | H19: 66 | I19: 2
B20: 14 | C20: 14 | D20: 合志市 | E20: 63555 | F20: 108 | G20: 1.699315553 | H20: 97 | I20: 11
B21: 15 | C21: 15 | D21: 美里町 | E21: 8518 | F21: 5 | G21: 0.5869922517 | H21: 20 | I21: -15
B22: 16 | C22: 16 | D22: 玉東町 | E22: 4962 | F22: 5 | G22: 1.007658202 | H22: 5 | I22: 0
B23: 17 | C23: 17 | D23: 南関町 | E23: 8348 | F23: 13 | G23: 1.557259224 | H23: 17 | I23: -4
B24: 18 | C24: 18 | D24: 長洲町 | E24: 14884 | F24: 30 | G24: 2.015587208 | H24: 22 | I24: 8
B25: 19 | C25: 19 | D25: 和水町 | E25: 8718 | F25: 11 | G25: 1.261757284 | H25: 10 | I25: 1
B26: 20 | C26: 20 | D26: 大津町 | E26: 35798 | F26: 92 | G26: 2.569975976 | H26: 85 | I26: 7
B27: 21 | C27: 21 | D27: 菊陽町 | E27: 44503 | F27: 189 | G27: 4.246904703 | H27: 174 | I27: 15
B28: 22 | C28: 22 | D28: 南小国町 | E28: 3664 | F28: 5 | G28: 1.364628821 | H28: 4 | I28: 1
B29: 23 | C29: 23 | D29: 小国町 | E29: 6159 | F29: 13 | G29: 2.110732262 | H29: 6 | I29: 7
B30: 24 | C30: 24 | D30: 産山村 | E30: 1320 | F30: 1 | G30: 0.7575757576 | H30: 5 | I30: -4
B31: 25 | C31: 25 | D31: 高森町 | E31: 5483 | F31: 8 | G31: 1.459055262 | H31: 17 | I31: -9
B32: 26 | C32: 26 | D32: 西原村 | E32: 6642 | F32: 4 | G32: 0.6022282445 | H32: 8 | I32: -4
B33: 27 | C33: 27 | D33: 南阿蘇村 | E33: 9553 | F33: 9 | G33: 0.9421124254 | H33: 13 | I33: -4
B34: 28 | C34: 28 | D34: 御船町 | E34: 16602 | F34: 33 | G34: 1.987712324 | H34: 28 | I34: 5
B35: 29 | C35: 29 | D35: 嘉島町 | E35: 9954 | F35: 48 | G35: 4.822182037 | H35: 33 | I35: 15
B36: 30 | C36: 30 | D36: 益城町 | E36: 33183 | F36: 60 | G36: 1.808154778 | H36: 63 | I36: -3
B37: 31 | C37: 31 | D37: 甲佐町 | E37: 9819 | F37: 12 | G37: 1.222120379 | H37: 17 | I37: -5
B38: 32 | C38: 32 | D38: 山都町 | E38: 12328 | F38: 21 | G38: 1.703439325 | H38: 8 | I38: 13
B39: 33 | C39: 33 | D39: 氷川町 | E39: 10416 | F39: 15 | G39: 1.440092166 | H39: 20 | I39: -5
B40: 34 | C40: 34 | D40: 芦北町 | E40: 14291 | F40: 26 | G40: 1.819326849 | H40: 32 | I40: -6
B41: 35 | C41: 35 | D41: 津奈木町 | E41: 4004 | F41: 1 | G41: 0.2497502498 | H41: 3 | I41: -2
B42: 36 | C42: 36 | D42: 錦町 | E42: 9963 | F42: 14 | G42: 1.405199237 | H42: 13 | I42: 1
B43: 37 | C43: 37 | D43: 多良木町 | E43: 8370 | F43: 12 | G43: 1.433691756 | H43: 13 | I43: -1
B44: 38 | C44: 38 | D44: 湯前町 | E44: 3385 | F44: 1 | G44: 0.2954209749 | H44: 2 | I44: -1
B45: 39 | C45: 39 | D45: 水上村 | E45: 1873 | G45: 0 | H45: 1 | I45: -1
B46: 40 | C46: 40 | D46: 相良村 | E46: 3815 | F46: 3 | G46: 0.7863695937 | H46: 3 | I46: 0
B47: 41 | C47: 41 | D47: 五木村 | E47: 828 | F47: 1 | G47: 1.207729469 | H47: 0 | I47: 1
B48: 42 | C48: 42 | D48: 山江村 | E48: 3042 | F48: 3 | G48: 0.9861932939 | H48: 2 | I48: 1
B49: 43 | C49: 43 | D49: 球磨村 | E49: 1810 | F49: 2 | G49: 1.104972376 | H49: 1 | I49: 1
B50: 44 | C50: 44 | D50: あさぎり町 | E50: 13906 | F50: 18 | G50: 1.294405293 | H50: 21 | I50: -3
B51: 45 | C51: 45 | D51: 苓北町 | E51: 6514 | F51: 3 | G51: 0.4605465152 | H51: 4 | I51: -1 | J51: =E51 -> 6514 | K51: 天草郡計
D52: 不明 | E52: － | F52: 42 | G52: - | H52: 38 | I52: =F52-H52 -> 4
B54: 【参考】 熊本市の 各区ごとの 認知件数 | C54: 1 | D54: 熊本市中央区 | E54: 187002 | F54: 1014 | G54: =F54/E54*1000 -> 5.422401899 | H54: 906 | I54: 108 | J54: =SUM(E54:E58) -> 737944 | K54: 熊本市計
C55: 2 | D55: 熊本市東区 | E55: 190243 | F55: 528 | G55: 2.775397781 | H55: 433 | I55: 95
C56: 3 | D56: 熊本市西区 | E56: 90512 | F56: 284 | G56: 3.137705498 | H56: 223 | I56: 61
C57: 4 | D57: 熊本市南区 | E57: 132000 | F57: 303 | G57: 2.295454545 | H57: 271 | I57: 32
C58: 5 | D58: 熊本市北区 | E58: 138187 | F58: 261 | G58: 1.888744962 | H58: 233 | I58: 28 | J58: =SUM(F54:F58) -> 2390 | K58: =SUM(H54:H58) -> 2066
B60: 注１ 犯罪率は、人口１，０００人当たりの認知件数である。
B61: 注2 人口は、県統計調査課が算出した推計値（令和6年1月1日現在）による。
